fUSD/lending_fUSD_20250519
["ID","MTS","AMOUNT","RATE_DAILY","PERIOD"]
[361677526,1747683032666,-500.0,0.00011968,2]
[361677527,1747683032675,-500.0,0.00011968,2]
[361677528,1747683032684,-37015.59756398,0.00011969,2]
[361677529,1747683032751,-137683.66361737,0.00011969,2]
[361677530,1747683032760,-5348.0,0.00011973,2]
[361677531,1747683032769,-320.69334249,0.00011973,2]
[361677532,1747683032778,-166.41620979,0.00011973,2]
[361677533,1747683032787,-500.54088895,0.00011973,2]
[361677534,1747683032796,-500.0,0.00011973,2]
[361677535,1747683032806,-500.0,0.00011973,2]
[361677536,1747683032815,-499.1895197,0.00011973,2]
[361677537,1747683032824,-500.0,0.00011973,2]
[361677538,1747683032833,-500.0,0.00011973,2]
[361677539,1747683032842,-500.0,0.00011973,2]
[361677540,1747683032850,-500.0,0.00011973,2]
[361677541,1747683032859,-500.0,0.00011973,2]
[361677542,1747683032868,-260.22,0.0001198,2]
[361677543,1747683032877,-260.22,0.0001199,2]
[361677544,1747683032886,-1233.0,0.0001199,2]
[361677545,1747683032895,-1025.0,0.0001199,2]
[361677546,1747683032904,-1000.0,0.0001199,2]
[361677547,1747683032913,-1000.0,0.0001199,2]
[361677548,1747683032922,-1000.0,0.0001199,2]
[361677549,1747683032931,-1000.0,0.0001199,2]
[361677550,1747683032941,-1000.0,0.0001199,2]
[361677551,1747683032950,-1000.0,0.0001199,2]
[361677552,1747683032960,-1000.0,0.0001199,2]
[361677553,1747683032968,-1000.0,0.0001199,2]
[361677554,1747683032978,-1000.0,0.0001199,2]
[361677555,1747683032987,-1000.0,0.0001199,2]
[361677556,1747683032995,-1000.0,0.0001199,2]
[361677557,1747683033004,-1000.0,0.0001199,2]
[361677558,1747683033014,-1000.0,0.0001199,2]
[361677559,1747683033023,-1000.0,0.0001199,2]
[361677560,1747683033032,-1000.0,0.0001199,2]
[361677561,1747683033041,-495.0,0.0001199,3]
[361677562,1747683033050,-1000.0,0.0001199,2]
[361677563,1747683033059,-1000.0,0.0001199,2]
[361677564,1747683033068,-260.22,0.0001199,2]
[361677565,1747683033077,-260.22,0.0001199,2]
[361677566,1747683033086,-260.22,0.0001199,2]
[361677567,1747683033095,-260.22,0.0001199,2]
[361677568,1747683033104,-260.22,0.0001199,2]
[361677569,1747683033113,-260.22,0.0001199,2]
[361677570,1747683033122,-200.11947107,0.00011999,2]
[361677571,1747683033131,-193.62772533,0.00011999,2]
[361677572,1747683033141,-195.69995642,0.00011999,2]
[361677573,1747683033150,-275.1584602,0.00012,2]
[361677574,1747683033159,-69576.13213671,0.00012,2]
[361677575,1747683033217,-339.17912446,0.00012,2]
[361677576,1747683033228,-3466.9925743,0.00012,2]
[361677577,1747683033259,1000.0,0.00011012,2]
[361677579,1747683037530,-164.76361612,0.000119,2]
[361677580,1747683037540,-6446.98632468,0.00012,2]
[361677581,1747683037551,-15696.8191596,0.00012,2]
[361677582,1747683037560,-116483.45221796,0.00012,2]
[361677583,1747683037636,-1428.37905058,0.00012,2]
[361677584,1747683037647,-709.08266212,0.00012,2]
[361677585,1747683037691,-1313.34246396,0.00012,2]
[361677586,1747683037745,-1138.66621302,0.00012,2]
[361677587,1747683037756,-1025.3,0.00012,2]
[361677589,1747683039706,-384.92218836,0.0001199,2]
[361677590,1747683039716,-384.92218836,0.0001199,2]
[361677591,1747683039726,-384.92218836,0.0001199,2]
[361677592,1747683039736,-30005.01352592,0.00012,2]
[361677593,1747683039842,-1650.05512954,0.00012,2]
[361677594,1747683039854,-4316.23010528,0.00012,2]
[361677595,1747683039865,-606.05829084,0.00012,2]
[361677596,1747683039875,-1000.0,0.00012,2]
[361677597,1747683039886,-5020.83828484,0.00012,2]
[361677598,1747683039897,-42908.35883907,0.00012,2]
[361677599,1747683039908,-1781.137005,0.00012,2]
[361677600,1747683039919,-1363.68834929,0.00012,2]
[361677601,1747683039930,-4592.27815191,0.00012,2]
[361677602,1747683039941,-1814.74099537,0.00012,2]
[361677603,1747683039954,-8456.29292692,0.00012,2]
[361677604,1747683039966,-9578.8693,0.00012,2]
[361677605,1747683039977,-16201.78172416,0.00012,2]
[361677606,1747683040008,-1950.0,0.00012,2]
[361677607,1747683040019,-446367.13891802,0.00012,2]
[361677608,1747683040028,-4615816.26740379,0.00012,2]
[361677612,1747683040332,-252201.26774217,0.00012,2]
[361677613,1747683040373,-108186.74986707,0.00012,2]
[361677614,1747683040384,-500.0,0.00012,2]
[361677615,1747683040395,-5932.81606621,0.00012,2]
[361677616,1747683040406,-6167.3096582,0.00012,2]
[361677617,1747683040420,-3832.6903418,0.00012,2]
[361677618,1747683042405,1764.3211,0.00014,5]
[361677625,1747683042685,1764.3211,0.00014,5]
[361677626,1747683042757,-250138.8140198,0.00012,2]
[361677627,1747683042767,-10480.40819635,0.00012,2]
[361677628,1747683042776,-250.0,0.00012,2]
[361677629,1747683042785,-250.0,0.00012,2]
[361677630,1747683042796,-250.0,0.00012,2]
[361677631,1747683042806,-250.0,0.00012,2]
[361677632,1747683042817,-250.0,0.00012,2]
[361677633,1747683042826,-250.0,0.00012,2]
[361677634,1747683042835,-250.0,0.00012,2]
[361677635,1747683042844,-320.5,0.00012,2]
[361677636,1747683042853,-200.0,0.00012,2]
[361677637,1747683042862,-150.0,0.00012,2]
[361677638,1747683042872,-175.58553289,0.00012,2]
[361677639,1747683042881,-236992.67362245,0.00012,2]
[361677640,1747683042892,-867160.74866782,0.00012,2]
[361677641,1747683043020,1764.3211,0.00014,5]
[361677642,1747683309301,179.78,0.00010948,2]
[361677643,1747683343162,1379.18,0.00010941,2]
[361677644,1747683462707,287.96,0.00010954,2]
[361677645,1747683585830,150.052004,0.000273,120]
[361677646,1747683595104,150.052004,0.000273,120]
[361677647,1747683595871,150.052004,0.000273,120]
[361677648,1747683596912,150.052004,0.000273,120]
[361677649,1747683597832,150.052004,0.000273,120]
[361677650,1747683599082,150.052004,0.000273,120]
[361677651,1747683607721,150.052004,0.000273,120]
[361677652,1747683608588,150.052004,0.000273,120]
[361677653,1747683609406,150.052004,0.000273,120]
[361677654,1747683610293,150.052004,0.000273,120]
[361677655,1747683635050,150.052004,0.00026,120]
[361677656,1747683728012,250.0,0.00010927,2]
[361677657,1747683798827,165.44,0.00010924,2]
[361677658,1747684019649,21529.16,0.00010925,2]
[361677659,1747684030102,185.29,0.00010925,2]
[361677660,1747684037287,1000.0,0.00010924,2]
[361677661,1747684040207,-188.9,0.00011502,2]
[361677662,1747684040228,-200.0,0.00011526,2]
[361677663,1747684040247,-250.0,0.0001155,2]
[361677664,1747684040267,-200.0,0.0001155,2]
[361677665,1747684040287,-864.76119748,0.00011598,2]
[361677666,1747684040307,-200.0,0.00011667,2]
[361677667,1747684040326,-202.0,0.00011749,2]
[361677668,1747684040698,-331.11593709,0.000118,2]
[361677669,1747684214261,150.052004,0.000273,120]
[361677671,1747684231698,-166.52,0.0001126,2]
[361677672,1747684231707,-200.0,0.00011836,2]
[361677673,1747684231717,-200.0,0.00011865,2]
[361677674,1747684231726,-300.0,0.00011872,2]
[361677675,1747684231735,-1200.0,0.00011872,2]
[361677676,1747684231744,-300.0,0.00011872,2]
[361677677,1747684231753,-136.08,0.00011873,2]
[361677678,1747684231777,-363.92,0.00011873,2]
[361677679,1747684231786,-356.71172157,0.00011873,2]
[361677681,1747684235002,-609.88347487,0.000118,2]
[361677682,1747684235056,-907.95922513,0.000118,2]
[361677683,1747684235066,-143.28827843,0.00011873,2]
[361677684,1747684235076,-161.41181715,0.00011873,2]
[361677685,1747684235085,-500.0,0.00011873,2]
[361677686,1747684235094,-500.0,0.00011873,2]
[361677687,1747684235104,-500.0,0.00011873,2]
[361677688,1747684235113,-500.0,0.00011873,2]
[361677689,1747684235123,-612.64823099,0.00011873,2]
[361677690,1747684235132,-1029.63,0.00011885,2]
[361677691,1747684235141,-318.95,0.00011895,2]
[361677692,1747684235151,-150.0,0.00011898,2]
[361677693,1747684235160,-318.95,0.00011899,2]
[361677694,1747684235170,-50.31443163,0.00011899,2]
[361677695,1747684235182,-413.81885817,0.00011899,2]
[361677696,1747684235191,-73.96824408,0.00011899,2]
[361677697,1747684235203,-157.0652363,0.00011899,2]
[361677698,1747684235212,-470.61684864,0.00011899,2]
[361677700,1747684235223,-29.38315136,0.00011899,2]
[361677701,1747684235233,-500.0,0.00011899,2]
[361677702,1747684235242,-270.61684864,0.00011899,2]
[361677703,1747684235317,-229.38315136,0.00011899,2]
[361677704,1747684235326,-500.0,0.00011899,2]
[361677705,1747684235335,-500.0,0.00011899,2]
[361677706,1747684235344,-500.0,0.00011899,2]
[361677707,1747684235353,-500.0,0.00011899,2]
[361677708,1747684235363,-500.0,0.00011899,2]
[361677709,1747684235372,-500.0,0.00011899,2]
[361677710,1747684235381,-481.44102031,0.00011899,2]
[361677711,1747684235391,-500.0,0.00011899,2]
[361677712,1747684235400,-2500.0,0.000119,2]
[361677713,1747684235409,-36024.13518985,0.000119,2]
[361677714,1747684235420,-40084.53012412,0.000119,2]
[361677715,1747684235431,-27006.19588603,0.000119,2]
[361677716,1747684235441,-339.58705734,0.000119,2]
[361677717,1747684235450,-265.27910418,0.000119,2]
[361677718,1747684235459,-33588.93795245,0.000119,2]
[361677719,1747684235470,-762.17542217,0.000119,2]
[361677720,1747684235485,-350.0,0.000119,2]
[361677721,1747684237686,-290.78,0.000119,2]
[361677722,1747684237783,-1711.199059,0.000119,2]
[361677723,1747684237831,-4099.8016418,0.000119,2]
[361677724,1747684237839,-166.81255399,0.000119,2]
[361677725,1747684237849,-1453.35081488,0.000119,2]
[361677726,1747684237858,-195.67071287,0.000119,2]
[361677727,1747684237867,-408.0128154,0.000119,2]
[361677728,1747684237876,-318.95,0.00011902,2]
[361677729,1747684237886,-200.0,0.00011904,2]
[361677730,1747684237895,-318.95,0.00011905,2]
[361677731,1747684237904,-318.95,0.00011908,2]
[361677732,1747684237914,-318.95,0.00011911,2]
[361677733,1747684237923,-318.95,0.00011914,2]
[361677734,1747684237932,-318.95,0.00011917,2]
[361677735,1747684237942,-318.95,0.0001192,2]
[361677736,1747684237951,-318.95,0.00011924,2]
[361677737,1747684237960,-318.95,0.00011927,2]
[361677738,1747684237970,-318.95,0.0001193,2]
[361677739,1747684237980,-318.95,0.00011933,2]
[361677741,1747684237989,-318.95,0.00011936,2]
[361677742,1747684237998,-318.95,0.00011939,2]
[361677744,1747684238008,-318.95,0.00011942,2]
[361677745,1747684238018,-318.95,0.00011945,2]
[361677746,1747684238029,-318.95,0.00011949,2]
[361677747,1747684238039,-256.5665372,0.00011952,2]
[361677752,1747684240031,-62.3834628,0.00011952,2]
[361677753,1747684240041,-318.95,0.00011955,2]
[361677754,1747684240051,-150.052004,0.00011998,2]
[361677755,1747684240059,-36071.90274214,0.00012,2]
[361677756,1747684240069,-4579212.97919485,0.00012,2]
[361677773,1747684240391,-1199.30233872,0.00012,2]
[361677775,1747684240406,-316.37889428,0.00012,2]
[361677778,1747684240420,-94698.0,0.00012,2]
[361677780,1747684240431,-1502.86725642,0.00012,2]
[361677837,1747684242823,-10752.9678174,0.00012,2]
[361677838,1747684242835,-798.75001,0.00012,2]
[361677839,1747684242846,-393.8979766,0.00012,2]
[361677840,1747684242857,-1761.37212073,0.00012,2]
[361677841,1747684242983,-3050.4888,0.00012,2]
[361677842,1747684242995,-128634.75337595,0.00012,2]
[361677852,1747684245714,-1563.17,0.00012,2]
[361677853,1747684245727,-1144.90002,0.00012,2]
[361677854,1747684245738,-980.2890193,0.00012,2]
[361677855,1747684245779,-571.41973568,0.00012,2]
[361677856,1747684245792,-23435.30318207,0.00012,2]
[361677857,1747684245865,-894.2930488,0.00012,2]
[361677858,1747684245878,-833.15999988,0.00012,2]
[361677859,1747684245901,-98237.8046804,0.00012,2]
[361677860,1747684245912,-296349.38838396,0.00012,2]
[361677861,1747684245924,-2016.45571008,0.00012,2]
[361677862,1747684245935,-904.44999998,0.00012,2]
[361677863,1747684245947,-3303.64415074,0.00012,2]
[361677864,1747684245972,-5657.438,0.00012,2]
[361677876,1747684246810,-270.75301487,0.00012,2]
[361677877,1747684246823,-779959.38107269,0.00012,2]
[361677878,1747684246832,-103092.823355,0.00012,2]
[361677879,1747684246921,-6527.0,0.00012,2]
[361677880,1747684246932,-1617.996,0.00012,2]
[361677881,1747684276313,898.5,0.00010098,2]
[361677882,1747684284654,150.052004,0.000273,120]
[361677883,1747684286304,150.052004,0.000273,120]
[361677884,1747684287265,150.052004,0.000273,120]
[361677885,1747684289135,150.052004,0.000273,120]
[361677886,1747684289678,150.052004,0.000273,120]
[361677887,1747684304682,150.052004,0.000273,120]
[361677888,1747684502187,150.052004,0.000273,120]
[361677889,1747684504047,150.052004,0.000273,120]
[361677890,1747684510847,170.09,9e-05,2]
[361677891,1747684515380,150.052004,0.00011198,2]
[361677892,1747684752253,250.0,0.00011169,2]
[361677893,1747684776297,150.0,0.00011159,2]
[361677894,1747684841200,202.0,0.00010759,2]
[361677895,1747684968147,162.64,0.00011046,2]
[361677896,1747684968287,834.89468261,0.000112,2]
[361677897,1747685089601,1000.0,0.00011025,2]
[361677898,1747685349217,-641.35688106,0.00011276,2]
[361677899,1747685419330,1088.03,9.241e-05,2]
[361677900,1747685428508,3537.29,0.00010992,2]
[361677901,1747685431994,-1200.0,0.00011276,2]
[361677902,1747685432004,-300.0,0.00011276,2]
[361677903,1747685432013,-200.0,0.00011276,2]
[361677904,1747685432023,-200.0,0.00011276,2]
[361677905,1747685432032,-250.0,0.00011277,2]
[361677906,1747685432042,-3849.953288,0.00011277,2]
[361677907,1747685432051,-384.03110921,0.00011277,2]
[361677908,1747685432060,-300.0,0.00011335,2]
[361677909,1747685432070,-287.96,0.00011336,2]
[361677910,1747685432079,-264.71,0.0001139,2]
[361677911,1747685432088,-1088.03,0.00011505,2]
[361677912,1747685432098,-864.76119748,0.00011748,2]
[361677913,1747685432107,-500.0,0.00011873,2]
[361677914,1747685432117,-500.0,0.00011873,2]
[361677915,1747685432126,-500.0,0.00011873,2]
[361677916,1747685432135,-500.0,0.00011873,2]
[361677917,1747685432144,-500.0,0.00011873,2]
[361677918,1747685432153,-207.4,0.00011873,2]
[361677919,1747685432162,-9923.47696208,0.0001188,2]
[361677920,1747685432176,-500.0,0.00011899,2]
[361677921,1747685432185,-500.0,0.00011899,2]
[361677922,1747685432195,-500.0,0.00011899,2]
[361677923,1747685432204,-500.0,0.00011899,2]
[361677924,1747685432215,-500.0,0.00011899,2]
[361677925,1747685432224,-370.93494544,0.00011899,2]
[361677926,1747685432235,-129.06505456,0.00011899,2]
[361677927,1747685432245,-500.0,0.00011899,2]
[361677928,1747685432256,-500.0,0.00011899,2]
[361677929,1747685432265,-500.0,0.00011899,2]
[361677931,1747685432274,-500.0,0.00011899,2]
[361677933,1747685432283,-474.21494544,0.00011899,2]
[361677935,1747685432294,-25.78505456,0.00011899,2]
[361677937,1747685432303,-314.04714772,0.00011899,2]
[361677939,1747685432314,-185.95285228,0.00011899,2]
[361677941,1747685432324,-170.43714772,0.00011899,2]
[361677945,1747685432347,-128.13114278,0.00011899,2]
[361677947,1747685432357,-500.0,0.00011899,2]
[361677948,1747685432366,-500.0,0.00011899,2]
[361677949,1747685432375,-500.0,0.00011899,2]
[361677951,1747685432383,-142.65631736,0.00011899,2]
[361677953,1747685432394,-357.34368264,0.00011899,2]
[361677955,1747685432403,-500.0,0.00011899,2]
[361677957,1747685432412,-500.0,0.00011899,2]
[361677959,1747685432421,-500.0,0.00011899,2]
[361677961,1747685432430,-500.0,0.00011899,2]
[361677963,1747685432439,-500.0,0.00011899,2]
[361677964,1747685432448,-500.0,0.00011899,2]
[361677966,1747685432458,-500.0,0.00011899,2]
[361677968,1747685432467,-500.0,0.00011899,2]
[361677970,1747685432476,-500.0,0.00011899,2]
[361677972,1747685432486,-550.72005411,0.00011899,2]
[361677974,1747685432495,-682.7713,0.000119,2]
[361677976,1747685432504,-11158.0119,0.000119,2]
[361677978,1747685432514,-19331.16691429,0.000119,2]
[361677981,1747685432525,-24650.63850724,0.000119,2]
[361678477,1747685437850,-1000.0,0.00011891,2]
[361678478,1747685437860,-3476.477441,0.000119,2]
[361678479,1747685437925,-599.89683747,0.000119,2]
[361678480,1747685437934,-187.00974031,0.000119,2]
[361678481,1747685437943,-259.31327875,0.000119,2]
[361678482,1747685437955,-1948.2507036,0.000119,2]
[361678483,1747685437966,-1162.83,0.000119,2]
[361678487,1747685438390,-1836.78801765,0.000119,2]
[361678488,1747685438400,-258.354,0.000119,2]
[361678489,1747685438409,-153.11019499,0.000119,2]
[361678490,1747685438422,-1602.78312754,0.000119,2]
[361678491,1747685438434,-166.81255399,0.000119,2]
[361678492,1747685438443,-500.62355551,0.000119,2]
[361678493,1747685438453,-202.0,0.000119,2]
[361678494,1747685438462,-200.0,0.00011904,2]
[361678495,1747685438472,-244.0,0.00011945,2]
[361678496,1747685438481,-500.0,0.00011973,2]
[361678497,1747685438490,-154.19770639,0.00011985,2]
[361678498,1747685438499,-155.0,0.00011985,2]
[361678499,1747685438508,-151.0,0.00011985,2]
[361678500,1747685438517,-214.37073772,0.00011985,2]
[361678501,1747685438526,-668.65185757,0.00011985,2]
[361678502,1747685438535,-1199.20597015,0.00011985,2]
[361678503,1747685438544,-350.0,0.00011988,2]
[361678504,1747685438553,-172.28526905,0.0001199,2]
[361678505,1747685438561,-10191.4918255,0.00011991,2]
[361678506,1747685438570,-100021.3089566,0.00011991,2]
[361678507,1747685438579,-20449.4435844,0.00011991,2]
[361678508,1747685438589,-1000.0,0.00011999,2]
[361678509,1747685438598,-600685.92087786,0.00012,2]
[361678510,1747685438622,-533.843,0.00012,2]
[361678512,1747685440004,-3670417.47521635,0.00012,2]
[361678513,1747685440014,-151.0,0.00012,2]
[361678514,1747685440023,-151.0,0.00012,2]
[361678515,1747685440032,-151.0,0.00012,2]
[361678516,1747685440042,-151.0,0.00012,2]
[361678517,1747685440052,-151.0,0.00012,2]
[361678518,1747685440061,-151.0,0.00012,2]
[361678519,1747685440071,-151.0,0.00012,2]
[361678520,1747685440080,-151.0,0.00012,2]
[361678521,1747685440089,-151.0,0.00012,2]
[361678522,1747685440099,-1000.0,0.00012,2]
[361678523,1747685440108,-1000.0,0.00012,2]
[361678524,1747685440118,-1000.0,0.00012,2]
[361678525,1747685440127,-1000.0,0.00012,2]
[361678526,1747685440137,-792.13719125,0.00012,2]
[361678527,1747685440146,-500.0,0.00012,2]
[361678528,1747685440157,-500.0,0.00012027,2]
[361678529,1747685440166,-848.05,0.00012055,2]
[361678530,1747685440178,-637.0,0.00012055,2]
[361678531,1747685440189,-166.52,0.00012189,2]
[361678532,1747685440198,-453.11,0.000122,2]
[361678533,1747685440207,-805.14,0.000122,2]
[361678534,1747685440218,-154.02,0.00012293,2]
[361678535,1747685440227,-1379.18,0.00012309,2]
[361678536,1747685440237,-160.21,0.00012318,2]
[361678537,1747685440246,-500.0,0.00012329,2]
[361678538,1747685440260,-298.87348035,0.00012329,2]
[361678539,1747685440270,-420.0,0.00012388,2]
[361678540,1747685440280,-1000.0,0.00012404,2]
[361678541,1747685440290,-250.0,0.00012404,2]
[361678542,1747685440299,-200.0,0.00012404,2]
[361678543,1747685440309,-250.0,0.00012404,2]
[361678544,1747685440318,-200.0,0.00012404,2]
[361678545,1747685440328,-200.0,0.00012404,2]
[361678546,1747685440338,-1680.0,0.00012404,2]
[361678547,1747685440347,-1000.0,0.00012421,2]
[361678548,1747685440357,-1000.0,0.00012421,2]
[361678549,1747685440366,-1000.0,0.00012421,2]
[361678550,1747685440376,-162.64,0.00012427,2]
[361678551,1747685440386,-420.0,0.00012451,2]
[361678552,1747685440396,-297.8756831,0.000125,2]
[361678553,1747685440407,-156.36,0.000125,2]
[361678554,1747685440416,-156.36,0.000125,2]
[361678555,1747685440426,-156.36,0.000125,2]
[361678556,1747685440436,-1000.0,0.00012521,2]
[361678557,1747685440446,-693.3919763,0.00012533,2]
[361678558,1747685440457,-264.71,0.00012814,2]
[361678559,1747685440468,-854.27,0.00012893,2]
[361678560,1747685440478,-150.99,0.00012893,2]
[361678561,1747685440488,-1794.81,0.00012893,2]
[361678563,1747685440498,-4874.62,0.00012893,2]
[361678564,1747685440507,-9999.99,0.00012893,2]
[361678565,1747685440517,-150.99,0.00012893,2]
[361678566,1747685440526,-1000.0,0.00012899,2]
[361678567,1747685440536,-4058.52,0.000129,2]
[361678568,1747685440546,-6814.56,0.000129,2]
[361678569,1747685440555,-541.69702596,0.000129,2]
[361678570,1747685440565,-1500.0,0.00012968,2]
[361678571,1747685440574,-1500.0,0.00012968,2]
[361678572,1747685440583,-1500.0,0.00012968,2]
[361678573,1747685440594,-4287.19786418,0.00013,2]
[361678574,1747685440603,-5176.94150757,0.0001305,2]
[361678575,1747685440613,-1500.0,0.00013068,2]
[361678576,1747685440622,-719.04747942,0.00013081,2]
[361678577,1747685440631,-166.52,0.00013119,2]
[361678578,1747685440641,-8121.61894653,0.00013163,2]
[361678579,1747685440650,-4058.52,0.000132,2]
[361678580,1747685440659,-6814.56,0.000132,2]
[361678581,1747685440668,-215.0738,0.00013242,2]
[361678582,1747685440678,-160.21,0.00013257,2]
[361678583,1747685440687,-250.0,0.00013272,2]
[361678584,1747685440697,-26201.91427226,0.00013306,2]
[361678585,1747685440706,-156.587,0.00013354,2]
[361678586,1747685440716,-1152.01945615,0.00013354,2]
[361678587,1747685440725,-3578.10033503,0.00013368,2]
[361678588,1747685440735,-805.34125131,0.000135,2]
[361678589,1747685440745,-157.91158659,0.000135,2]
[361678590,1747685440756,-157.91158659,0.000135,2]
[361678591,1747685440765,-26201.91427226,0.00013507,2]
[361678592,1747685440775,-2000.0,0.00013516,2]
[361678593,1747685440784,-2000.0,0.00013516,2]
[361678594,1747685440793,-2000.0,0.00013516,2]
[361678595,1747685440803,-587.0,0.00013609,2]
[361678596,1747685440813,-2000.0,0.00013616,2]
[361678597,1747685440822,-745.65223616,0.00013629,2]
[361678598,1747685440831,-2351.0,0.00013644,2]
[361678599,1747685440841,-165.44,0.00013655,2]
[361678600,1747685440850,-1379.18,0.00013677,2]
[361678601,1747685440860,-587.0,0.00013678,2]
[361678602,1747685440870,-118538.85249076,0.0001368,2]
[361678603,1747685440879,-1000.0,0.00013698,2]
[361678604,1747685440889,-1000.0,0.00013698,2]
[361678605,1747685440899,-1000.0,0.00013698,2]
[361678606,1747685440908,-1000.0,0.00013698,2]
[361678607,1747685440918,-1000.0,0.00013698,2]
[361678608,1747685440928,-1000.0,0.00013698,2]
[361678609,1747685440938,-1000.0,0.00013698,2]
[361678610,1747685440947,-1000.0,0.00013698,2]
[361678611,1747685440956,-1000.0,0.00013698,2]
[361678612,1747685440966,-1000.0,0.00013698,2]
[361678613,1747685440976,-1000.0,0.00013698,2]
[361678614,1747685440985,-1000.0,0.00013698,2]
[361678615,1747685440994,-1000.0,0.00013698,2]
[361678616,1747685441003,-1000.0,0.00013698,2]
[361678617,1747685441013,-1000.0,0.00013698,2]
[361678618,1747685441023,-1000.0,0.00013698,2]
[361678619,1747685441032,-856.44417545,0.00013698,2]
[361678620,1747685441042,-552.66,0.00013698,2]
[361678621,1747685441051,-5284.02,0.00013699,2]
[361678622,1747685441060,-171.45,0.00013699,2]
[361678623,1747685441075,-15561.45,0.00013699,2]
[361678624,1747685441085,-200.0,0.00013699,2]
[361678625,1747685441094,-1500.0,0.00013699,2]
[361678626,1747685441103,-358.93,0.00013699,2]
[361678627,1747685441117,-982.48,0.00013699,2]
[361678628,1747685441127,-501.62514668,0.00013699,2]
[361678629,1747685441136,-500.0,0.00013699,2]
[361678630,1747685441145,-271.43399024,0.00013699,2]
[361678631,1747685441155,-500.0,0.00013699,2]
[361678632,1747685441164,-500.0,0.00013699,2]
[361678633,1747685441176,-500.0,0.00013699,2]
[361678634,1747685441187,-500.0,0.00013699,2]
[361678635,1747685441197,-500.0,0.00013699,2]
[361678636,1747685441206,-500.0,0.00013699,2]
[361678637,1747685441216,-500.0,0.00013699,2]
[361678638,1747685441227,-500.0,0.00013699,2]
[361678639,1747685441236,-500.0,0.00013699,2]
[361678640,1747685441245,-500.0,0.00013699,2]
[361678641,1747685441256,-500.0,0.00013699,2]
[361678642,1747685441266,-500.0,0.00013699,2]
[361678643,1747685441276,-500.0,0.00013699,2]
[361678644,1747685441286,-500.0,0.00013699,2]
[361678645,1747685441295,-500.0,0.00013699,2]
[361678646,1747685441306,-500.0,0.00013699,2]
[361678647,1747685441316,-500.0,0.00013699,2]
[361678648,1747685441326,-500.0,0.00013699,2]
[361678649,1747685441336,-274.4779123,0.00013699,2]
[361678650,1747685441348,-500.0,0.00013699,2]
[361678651,1747685441358,-500.0,0.00013699,2]
[361678652,1747685441367,-500.0,0.00013699,2]
[361678653,1747685441377,-500.0,0.00013699,2]
[361678654,1747685441387,-527.35484998,0.00013699,2]
[361678655,1747685441397,-500.0,0.00013699,2]
[361678656,1747685441406,-500.0,0.00013699,2]
[361678657,1747685441416,-500.0,0.00013699,2]
[361678658,1747685441426,-500.0,0.00013699,2]
[361678659,1747685441437,-500.0,0.00013699,2]
[361678660,1747685441447,-500.0,0.00013699,2]
[361678661,1747685441456,-500.0,0.00013699,2]
[361678662,1747685441466,-500.0,0.00013699,2]
[361678663,1747685441476,-500.0,0.00013699,2]
[361678664,1747685441486,-500.0,0.00013699,2]
[361678665,1747685441497,-200.0,0.00013699,2]
[361678666,1747685441506,-500.0,0.00013699,2]
[361678667,1747685441517,-500.0,0.00013699,2]